Cogmind - Beta 14 --- EXPLORER MODE // 2024.11.20 @ 12:30:12 Player: fpsbossfight Result: Destroyed by H-88 Terminator with KE Penetrator Performance ------------- Evolutions (8) 4000 Regions Visited (22) 4400 Robots Destroyed (187) 935 Value Destroyed (10363) 10363 Prototype IDs (39) 780 Alien Tech Used (0) 0 Bonus (5833) 5833 TOTAL SCORE: 26311 Bonus ------- High Alert Combat Kills 634 Follower Combat Kills 1399 Entered Garrisons 1000 Used RIF Installer 2500 Aligned with FarCom 300 Cogmind --------- Core Integrity 0/1450 Matter 282/300 Energy 99/100 System Corruption 7% Temperature Cool (0) Movement Core (50) Location -2/Research Parts ------- > --- POWER (2) -------- (None) > --- PROPULSION (4) --- (None) > --- UTILITY (16) ----- (None) > --- WEAPON (2) ------- (None) > --- INVENTORY (5) ---- Molecular Scythe Peak State ------------ > --- POWER ------------ Deuterium Engine Particle Reactor > --- PROPULSION ------- Improved Heavy Treads Armored Huge Wheel > --- UTILITY ---------- Improved Heat Sink Advanced Heat Sink Improved Cooling System Humpback Improved Powered Armor Relay Coupler [NC] Relay Coupler [Grunt] > --- WEAPON ----------- Heavy Linear Accelerator > --- INVENTORY -------- Improved Heavy Treads Improved Heavy Treads Improved Heavy Treads Armored Huge Wheel Improved Heat Sink Matter Compressor Structural Scanner Transmission Jammer Improved Powered Armor Improved Powered Armor Relay Coupler [NC] Relay Coupler [NC] Relay Coupler [Grunt] Relay Coupler [Sentry] Relay Coupler [Demolisher] Relay Coupler [Hunter] Relay Coupler [Behemoth] Relay Coupler [Behemoth] Trap Reconfigurator Heavy Linear Accelerator Heavy Linear Accelerator Heavy Linear Accelerator Heavy Missile Launcher Heavy Missile Launcher Remote Datajack Chainsword [Rating: 90] Favorites ----------- Power Heavy Deuterium Engine Engine Heavy Deuterium Engine Power Core Light Nuclear Core Reactor Particle Reactor Propulsion Armored Huge Wheel Treads Light Treads Leg Aluminum Leg Wheel Armored Huge Wheel Utility Relay Coupler [NC] Device Structural Scanner Storage Huge Storage Unit Processor Advanced Visual Processing Unit Hackware Relay Coupler [NC] Protection Improved Medium Armor Plating Weapon Cooled Particle Cannon Energy Gun Heavy Laser Energy Cannon Cooled Particle Cannon Ballistic Cannon Heavy Linear Accelerator Launcher Heavy Missile Launcher Special Weapon Remote Datajack Slashing Weapon Chainsword Special Melee Weapon Improved Datajack Build | -11 -10 -10 -10 -9 -8 -8 -8 -8 -7 -7 -7 -7 -6 -6 -5 -4 -4 -4 -4 -3 -3 -2 ------- Run | Yrd Mat Min Exi Min Mat Gar Mat Gar Fac Gar Fac Gar Fac Gar Fac Fac Upp Upp War Pro Res Res Slots Evolved 17 | . 1 . . . 4 . . . 2 . . . 2 . 2 2 . . . . 2 2 Power 1 | . . . . . . . . . . . . . 1 . . . . . . . . . Propulsion 2 | . . . . . 2 . . . . . . . . . . . . . . . . . Utility 14 | . 1 . . . 2 . . . 2 . . . 1 . 2 2 . . . . 2 2 Weapon . | . . . . . . . . . . . . . . . . . . . . . . . Parts Attached 279 | 1 7 7 . 1 28 25 27 14 36 32 40 36 11 8 1 1 1 . . 1 2 . Power 9 | . 1 . . . 1 . . . 1 . 2 1 1 2 . . . . . . . . Engine 5 | . 1 . . . 1 . . . 1 . 1 . . 1 . . . . . . . . Core 2 | . . . . . . . . . . . 1 . 1 . . . . . . . . . Reactor 2 | . . . . . . . . . . . . 1 . 1 . . . . . . . . Propulsion 51 | . 2 4 . . 12 6 7 . 4 1 3 7 2 1 1 . . . . 1 . . Treads 28 | . . 2 . . 5 5 1 . 2 1 3 5 2 1 1 . . . . . . . Leg 8 | . 2 2 . . 2 . 1 . . . . . . . . . . . . 1 . . Wheel 15 | . . . . . 5 1 5 . 2 . . 2 . . . . . . . . . . Hover . | . . . . . . . . . . . . . . . . . . . . . . . Flight . | . . . . . . . . . . . . . . . . . . . . . . . Utility 132 | 1 2 3 . 1 9 4 6 12 21 20 30 11 7 2 . 1 1 . . . 1 . Device 73 | . 1 1 . 1 2 1 3 7 13 12 20 5 5 1 . . . . . . 1 . Storage 5 | . . 2 . . 2 . . . . . 1 . . . . . . . . . . . Processor 6 | 1 1 . . . 1 . . . . . 1 . . . . 1 1 . . . . . Hackware 21 | . . . . . . 1 1 2 3 5 5 3 1 . . . . . . . . . Protection 27 | . . . . . 4 2 2 3 5 3 3 3 1 1 . . . . . . . . Artifact . | . . . . . . . . . . . . . . . . . . . . . . . Weapon 87 | . 2 . . . 6 15 14 2 10 11 5 17 1 3 . . . . . . 1 . Energy Gun 14 | . 2 . . . 4 8 . . . . . . . . . . . . . . . . Energy Cannon 18 | . . . . . . . 7 1 5 2 3 . . . . . . . . . . . Ballistic Gun . | . . . . . . . . . . . . . . . . . . . . . . . Ballistic Cannon 11 | . . . . . . . . . . . . 9 1 1 . . . . . . . . Launcher 7 | . . . . . 2 1 . . . 1 . 2 . 1 . . . . . . . . Special Weapon 7 | . . . . . . . . . . 4 2 1 . . . . . . . . . . Impact Weapon . | . . . . . . . . . . . . . . . . . . . . . . . Slashing Weapon 18 | . . . . . . 6 2 . . 3 . 5 . 1 . . . . . . 1 . Piercing Weapon . | . . . . . . . . . . . . . . . . . . . . . . . Special Melee Weapon 12 | . . . . . . . 5 1 5 1 . . . . . . . . . . . . Unidentified Prototypes 6 | . . . . . 2 . 1 . . 1 . . 1 . . . . . . . 1 . Corrupted Parts 1 | . . . . . . . . . . . . 1 . . . . . . . . . . System Corruption 1 | . . . . . . . . . . . . 1 . . . . . . . . . . Parts Lost 23 | . . . . . 1 4 1 . . 1 1 1 1 11 . . . 1 . 1 . . Power 1 | . . . . . . . . . . . . . 1 . . . . . . . . . Propulsion 9 | . . . . . 1 1 1 . . . . . . 4 . . . 1 . 1 . . Utility 10 | . . . . . . 2 . . . 1 1 1 . 5 . . . . . . . . Weapon 3 | . . . . . . 1 . . . . . . . 2 . . . . . . . . Highest Loss Streak 11 | . . . . . 1 3 1 . . 1 1 1 1 11 . . . 1 . 1 . . To Critical Strikes . | . . . . . . . . . . . . . . . . . . . . . . . Average Slot Usage (%) 84 | . 99 100 100 100 95 98 99 99 93 89 74 78 77 69 . 5 5 7 5 6 . . Engine 6 | . 12 12 12 12 7 8 8 8 6 7 6 . . 4 . . . . . . . . Treads 9 | . . . . . 9 16 16 16 14 11 8 13 12 6 . 5 5 2 . . . . Leg 4 | . 25 25 25 25 6 . . . . . . . . . . . . . . 2 . . Wheel 8 | . . . . . 14 15 15 16 9 7 7 6 6 5 . . . . . . . . Device 11 | . 9 17 25 25 14 7 15 8 13 7 7 9 23 22 . . . . . . . . Storage 8 | . 12 12 12 12 13 8 8 8 7 7 7 7 6 5 . . . . . . . . Processor 2 | . 14 6 . . 2 8 4 . . . . . . . . . . 5 5 4 . . Hackware 8 | . . . . . . . 3 8 13 15 17 14 12 10 . . . . . . . . Protection 8 | . . . . . 7 15 8 15 14 17 5 11 . . . . . . . . . . Energy Gun 5 | . 25 25 25 25 15 12 1 . . . . . . . . . . . . . . . Energy Cannon 5 | . . . . . . . 13 15 13 5 8 1 . . . . . . . . . . Slashing Weapon 1 | . . . . . . 3 . . . 3 2 2 . 4 . . . . . . . . Peak Build Rating 90 | 7 12 12 11 13 35 37 39 45 59 72 70 75 80 90 9 13 14 14 8 15 10 . Average Rating 43 | 7 11 11 10 12 29 35 34 39 51 60 59 58 73 67 2 9 9 11 8 8 . . On Entrance 24 | 7 7 12 11 11 13 33 31 36 41 58 67 52 64 73 2 9 9 14 8 8 . . Naked Turns 486 | . . . . . . . . . . . . . . 63 133 . . . . 13 104 173 Heaviest Build 306 | 16 20 21 21 22 115 114 117 122 131 131 306 264 266 259 . . . . . . . . Greatest Support 75 | 20 20 20 20 20 32 60 32 32 32 40 40 42 28 75 3 3 3 3 3 3 3 3 Greatest Overweight (x) 11 | . . 1 1 1 11 5 5 3 4 4 10 9 9 9 . . . . . . . . Average Overweight (x) 3 | . . . 1 1 3 4 4 3 3 3 7 8 8 5 . . . . . . . . Largest Inventory Capacity 35 | 10 10 25 10 10 35 25 25 25 25 25 35 35 35 35 5 5 5 5 5 5 5 5 Average Capacity 25 | 10 10 10 10 10 24 25 25 25 25 25 34 35 35 30 5 5 5 5 5 5 5 5 Most Carried 35 | 7 10 10 10 10 18 25 25 25 25 25 30 35 34 35 5 5 5 5 5 5 3 1 Average Carried 21 | 7 9 10 9 9 10 22 24 24 24 23 24 31 31 28 4 5 5 5 5 . . 1 Final Capacity 35 | 10 10 10 10 10 25 25 25 25 25 25 35 35 35 5 5 5 5 5 5 5 5 5 Final Carried 35 | 7 10 10 10 10 16 23 25 25 24 25 24 35 33 4 5 5 5 5 5 . 1 1 Class Distribution -------------------- 53% | Bothacker-Mutant 34% | Hacker-Mutant 7% | Botlord-Mutant Dominant Class ---------------- Hacker-Mutant | -10/Materials Hacker-Mutant | -10/Mines Hacker-Mutant | -10/Exiles Hacker-Mutant | -9/Mines Hacker-Mutant | -8/Materials Hacker-Mutant | -8/Garrison Bothacker-Mutant | -8/Materials Bothacker-Mutant | -8/Garrison Bothacker-Mutant | -7/Factory Bothacker-Mutant | -7/Garrison Bothacker-Mutant | -7/Factory Bothacker-Mutant | -7/Garrison Botlord-Mutant | -6/Factory Botlord-Mutant | -6/Garrison Hacker-Mutant | -5/Factory Hacker-Mutant | -4/Factory Hacker-Mutant | -4/Upper Caves Hacker-Mutant | -4/Upper Caves Hacker-Mutant | -4/Warlord Hacker-Mutant | -3/Proximity Caves Hacker-Mutant | -3/Research Hacker-Mutant | -2/Research Resources | -11 -10 -10 -10 -9 -8 -8 -8 -8 -7 -7 -7 -7 -6 -6 -5 -4 -4 -4 -4 -3 -3 -2 ----------- Run | Yrd Mat Min Exi Min Mat Gar Mat Gar Fac Gar Fac Gar Fac Gar Fac Fac Upp Upp War Pro Res Res Matter Collected 4483 | 200 89 89 . 43 252 307 231 188 207 696 579 712 221 467 150 . 52 . . . . . Remotely . | . . . . . . . . . . . . . . . . . . . . . . . Salvage Created 8151 | . 554 115 . 40 1335 963 383 617 394 518 1753 610 142 727 . . . . . . . . Parts 404 | . 31 6 . 5 71 44 36 32 24 17 84 31 3 20 . . . . . . . . Haulers Intercepted 3 | . 1 . . . 1 . . . . . 1 . . . . . . . . . . . Recyclers Shooed 2 | . . 1 . . 1 . . . . . . . . . . . . . . . . . Parts Field Recycled . | . . . . . . . . . . . . . . . . . . . . . . . Retrieved Matter . | . . . . . . . . . . . . . . . . . . . . . . . Parts Self-Destructed . | . . . . . . . . . . . . . . . . . . . . . . . Prevented . | . . . . . . . . . . . . . . . . . . . . . . . Kills | -11 -10 -10 -10 -9 -8 -8 -8 -8 -7 -7 -7 -7 -6 -6 -5 -4 -4 -4 -4 -3 -3 -2 ------- Run | Yrd Mat Min Exi Min Mat Gar Mat Gar Fac Gar Fac Gar Fac Gar Fac Fac Upp Upp War Pro Res Res Combat Hostiles Destroyed 150 | . 10 4 . . 23 21 6 13 6 8 27 25 4 3 . . . . . . . . Melee 3 | . . . . . . 3 . . . . . . . . . . . . . . . . Guns 44 | . 10 3 . . 17 14 . . . . . . . . . . . . . . . . Cannons 82 | . . . . . . . 6 13 6 8 26 19 4 . . . . . . . . . AOE 15 | . . . . . 2 4 . . . . . 6 . 3 . . . . . . . . Classes Destroyed 18 | . 6 . . . 6 1 1 . 1 . 2 . . 1 . . . . . . . . Worker 5 | . . . . . 3 . 1 . . . 1 . . . . . . . . . . . Builder 5 | . 1 . . 2 1 . . . . . 1 . . . . . . . . . . . Tunneler 1 | . . . . . 1 . . . . . . . . . . . . . . . . . Hauler 3 | . 1 . . . 1 . . . . . 1 . . . . . . . . . . . Recycler 7 | . 1 . . . 3 . . . . . 3 . . . . . . . . . . . Mechanic 1 | . . . . . 1 . . . . . . . . . . . . . . . . . Operator 1 | . . . . . . . 1 . . . . . . . . . . . . . . . Watcher 14 | . 3 . . . 2 . 4 . 2 . 2 1 . . . . . . . . . . Swarmer 29 | . 4 2 . . 6 6 2 2 . . 1 6 . . . . . . . . . . Cutter 3 | . . . . . . . . . . . . . . 3 . . . . . . . . Grunt 57 | . 6 2 . . 7 7 . 5 . 6 13 8 3 . . . . . . . . . Brawler 3 | . . . . . 1 1 . 1 . . . . . . . . . . . . . . Duelist 4 | . . . . . . 3 . . . . . 1 . . . . . . . . . . Sentry 34 | . . . . . 8 4 4 4 3 . 4 6 1 . . . . . . . . . Specialist 2 | . . . . . . . . . . . 2 . . . . . . . . . . . Hunter 2 | . . . . . 1 . . . . 1 . . . . . . . . . . . . Programmer 14 | . . . . . . . . . 3 1 6 4 . . . . . . . . . . Heavy 1 | . . . . . . . . . . . 1 . . . . . . . . . . . Thug 1 | . . . . . . . . 1 . . . . . . . . . . . . . . Best Kill Streak 6 | . 3 2 . 1 5 6 3 5 1 3 5 6 3 3 . . . . . . . . Combat Bots Only 6 | . 2 2 . . 4 6 2 5 1 3 5 6 3 3 . . . . . . . . Max Kills in Single Turn 5 | . 1 1 . 1 3 3 2 1 1 1 2 5 1 3 . . . . . . . . Gunslinging . | . . . . . . . . . . . . . . . . . . . . . . . Exploded 5 | . . . . . 2 3 . . . . . 5 . 3 . . . . . . . . Melee 1 | . . . . . . 1 . . . . . . . . . . . . . . . . Uniques/NPCs Destroyed . | . . . . . . . . . . . . . . . . . . . . . . . Combat | -11 -10 -10 -10 -9 -8 -8 -8 -8 -7 -7 -7 -7 -6 -6 -5 -4 -4 -4 -4 -3 -3 -2 -------- Run | Yrd Mat Min Exi Min Mat Gar Mat Gar Fac Gar Fac Gar Fac Gar Fac Fac Upp Upp War Pro Res Res Hostile Shots Fired 1661 | . 41 12 . . 115 80 16 26 124 90 297 271 60 145 49 6 76 63 . 40 8 142 Missed 543 | . 11 6 . . 30 19 7 9 48 21 94 75 23 47 16 5 33 29 . 16 4 50 Damage Taken 10054 | . 203 46 . . 700 645 75 145 302 649 1529 841 390 1358 364 22 433 368 117 337 69 1461 Core 3663 | . 51 9 . . 71 57 . 24 5 97 210 84 13 453 343 8 210 173 117 208 69 1461 Absorbed by Shields 95 | . . . . . . 7 . . . 1 . . . 87 . . . . . . . . Ignored by Resistances 6839 | . 136 29 . . 538 476 53 92 262 474 990 925 246 841 211 9 266 222 28 196 30 815 Regen/Repaired (Parts) 22 | . . . . . . . . . . . 22 . . . . . . . . . . . Core Remaining (%) 66 | 100 . . . 76 . . . 72 . . . 43 . 45 65 . . . . 37 94 . Volleys Fired 542 | . 41 9 . 3 99 45 21 45 22 75 86 64 10 22 . . . . . . . . Largest 2 | . 2 2 . 2 2 2 2 2 2 2 2 2 1 1 . . . . . . . . Hottest 180 | . 100 100 . 100 138 138 60 120 90 60 180 180 83 83 . . . . . . . . Shots Fired 900 | . 82 18 . 6 196 86 41 69 41 106 150 73 10 22 . . . . . . . . Gun 384 | . 82 18 . 6 194 84 . . . . . . . . . . . . . . . . Cannon 457 | . . . . . . . 41 69 41 73 136 66 10 21 . . . . . . . . Launcher 9 | . . . . . 2 2 . . . . . 4 . 1 . . . . . . . . Special 50 | . . . . . . . . . . 33 14 3 . . . . . . . . . . Kinetic 86 | . . . . . . . . . . . . 55 10 21 . . . . . . . . Thermal 750 | . 82 18 . 6 194 84 41 69 41 73 131 11 . . . . . . . . . . Explosive 9 | . . . . . 2 2 . . . . . 4 . 1 . . . . . . . . Electromagnetic 5 | . . . . . . . . . . . 5 . . . . . . . . . . . Robot Hit Streak 67 | . 19 33 . 39 67 32 33 30 21 33 41 26 29 28 . . . . . . . . Robot Miss Streak 2 | . 1 . . . 2 1 1 1 1 2 1 2 1 . . . . . . . . . Penetration Max . | . . . . . . . . . . . . . . . . . . . . . . . Secondary Targets 6 | . 1 . . . 1 4 . . . . . . . . . . . . . . . . Max Gunslinging Chain 1 | . 1 . . . 1 1 . . . . . . . . . . . . . . . . Capacitor 5 | . . . . . . . . . . . 5 . . . . . . . . . . . Shots Hit Robots 731 | . 67 14 . 6 165 72 31 40 42 75 107 53 9 50 . . . . . . . . Core Hits 266 | . 26 6 . 2 52 36 12 17 11 16 37 26 4 18 . . . . . . 2 1 Critical Kills . | . . . . . . . . . . . . . . . . . . . . . . . Critical Parts Destroyed . | . . . . . . . . . . . . . . . . . . . . . . . Critical Strikes 26 | . 5 2 . 1 8 1 . . . . . 6 1 2 . . . . . . . . Burn 16 | . 5 2 . 1 8 . . . . . . . . . . . . . . . . . Blast 9 | . . . . . . . . . . . . 6 1 2 . . . . . . . . Sever 1 | . . . . . . 1 . . . . . . . . . . . . . . . . Melee Attacks 123 | . . . . . . 25 13 3 12 18 3 14 . 35 . . . . . . . . Impact . | . . . . . . . . . . . . . . . . . . . . . . . Slashing 98 | . . . . . . 25 3 . . 18 3 14 . 35 . . . . . . . . Piercing . | . . . . . . . . . . . . . . . . . . . . . . . Sneak Attacks 19 | . . . . . . . 10 3 6 . . . . . . . . . . . . . Combat Hostiles . | . . . . . . . . . . . . . . . . . . . . . . . Follow-up Attacks . | . . . . . . . . . . . . . . . . . . . . . . . Damage Inflicted 21455 | . 824 190 . 75 3316 1788 597 1007 835 1418 3306 3534 687 3764 8 17 . . . 1 17 71 Guns 5366 | . 824 190 . 75 3108 1169 . . . . . . . . . . . . . . . . Cannons 12359 | . . . . . . . 597 1007 835 1277 3306 3106 687 1544 . . . . . . . . Explosions 1113 | . . . . . 203 300 . . . . . 428 . 182 . . . . . . . . Melee 2486 | . . . . . . 319 . . . 141 . . . 2026 . . . . . . . . Ramming 131 | . . . . . 5 . . . . . . . . 12 8 17 . . . 1 17 71 Kinetic 5178 | . . . . . . . . . . . . 2947 687 1544 . . . . . . . . Thermal 12419 | . 824 190 . 75 3108 1169 597 1007 835 1277 3178 159 . . . . . . . . . . Explosive 1113 | . . . . . 203 300 . . . . . 428 . 182 . . . . . . . . Electromagnetic 128 | . . . . . . . . . . . 128 . . . . . . . . . . . Impact . | . . . . . . . . . . . . . . . . . . . . . . . Slashing 2486 | . . . . . . 319 . . . 141 . . . 2026 . . . . . . . . Piercing . | . . . . . . . . . . . . . . . . . . . . . . . Highest Corruption 7 | . 1 1 1 1 . . 1 1 1 2 4 7 . . . . . . . . . 7 Average Corruption 2 | . 1 1 1 1 . . 1 1 1 1 2 6 . . . . . . . . . 4 Corruption Purged . | . . . . . . . . . . . . . . . . . . . . . . . Corruption Blocked . | . . . . . . . . . . . . . . . . . . . . . . . Effects 209 | . 5 4 9 4 . . 8 9 6 21 81 59 . . . . . . . . . 3 Message Errors 57 | . . 1 1 4 . . 1 4 1 10 23 10 . . . . . . . . . 2 Matter Fused 53 | . 1 3 3 . . . 3 1 2 4 17 19 . . . . . . . . . . Heat Flow Errors 27 | . 1 . 1 . . . . 1 1 3 13 6 . . . . . . . . . 1 Energy Discharges 20 | . 2 . 1 . . . 1 2 1 1 4 8 . . . . . . . . . . Parts Fused 1 | . . . . . . . . . . . . 1 . . . . . . . . . . Data Loss (minor) 21 | . . . 1 . . . 1 . . 3 9 7 . . . . . . . . . . Data Loss (major) 11 | . . . . . . . 1 . . . 6 4 . . . . . . . . . . Misfires 10 | . 1 . . . . . 1 1 . . 5 2 . . . . . . . . . . Alerts 6 | . . . 2 . . . . . . . 2 2 . . . . . . . . . . Weapon Failures 3 | . . . . . . . . . 1 . 2 . . . . . . . . . . . Overload Shots 6 | . . . . . . . . 4 2 . . . . . . . . . . . . . Overflow Damage 950 | . . . . . . 91 . 16 5 33 166 268 . 371 . . . . . . . . Projectiles 784 | . . . . . . . . 16 5 33 166 268 . 296 . . . . . . . . Explosions 40 | . . . . . . 40 . . . . . . . . . . . . . . . . Melee 126 | . . . . . . 51 . . . . . . . 75 . . . . . . . . Knockbacks 6 | . . . . . . . . . . . . 3 . 2 . . . . . . . 1 Impact 1 | . . . . . . . . . . . . . . . . . . . . . . 1 Kinetic 4 | . . . . . . . . . . . . 3 . 1 . . . . . . . . Secondary 1 | . . . . . . . . . . . . . . 1 . . . . . . . . Self-Inflicted Damage 98 | . . . . . 2 . . . . . . . . 45 3 8 . . . . 7 33 Shots 1 | . . . . . . . . . . . . . . 1 . . . . . . . . Rammed 34 | . . . . . 1 . . . . . . . . 3 2 2 1 1 . 2 6 16 Targets Rammed 34 | . . . . . 1 . . . . . . . . 3 2 2 1 1 . 2 6 16 Kicked . | . . . . . . . . . . . . . . . . . . . . . . . Crushed . | . . . . . . . . . . . . . . . . . . . . . . . Highest Temperature 506 | . 219 25 188 . 60 279 . 110 209 244 506 411 . . . . . . 244 . . 119 Average Temperature 89 | . 67 18 105 . 15 48 . 26 71 105 120 181 . . . . . . 136 . . 70 Received Heat Transfer 4192 | . 141 39 . . 432 279 27 126 114 393 912 471 72 784 90 9 . 36 . 111 21 135 Effects 13 | . . . . . . 1 . . . . 4 8 . . . . . . . . . . Shutdowns 2 | . . . . . . . . . . . . 2 . . . . . . . . . . Energy Bleed 4 | . . . . . . 1 . . . . . 3 . . . . . . . . . . Interference 4 | . . . . . . . . . . . 2 2 . . . . . . . . . . Short Circuit 2 | . . . . . . . . . . . 2 . . . . . . . . . . . Damage (minor) 1 | . . . . . . . . . . . . 1 . . . . . . . . . . Siege Activations . | . . . . . . . . . . . . . . . . . . . . . . . Robots Corrupted . | . . . . . . . . . . . . . . . . . . . . . . . Combat Hostiles . | . . . . . . . . . . . . . . . . . . . . . . . Parts Fried 1 | . . . . . . . . . . . 1 . . . . . . . . . . . Impact Corruptions . | . . . . . . . . . . . . . . . . . . . . . . . Robots Melted 6 | . . 1 . . 4 . . . . . 1 . . . . . . . . . . . Combat Hostiles 6 | . . 1 . . 4 . . . . . 1 . . . . . . . . . . . Parts Melted 45 | . 4 5 . . 15 1 3 . 3 2 12 . . . . . . . . . . . Heat Transferred 22372 | . 2634 703 . 296 6734 2294 814 1369 1110 1468 4700 250 . . . . . . . . . . Parts Sabotaged . | . . . . . . . . . . . . . . . . . . . . . . . Parts Stolen . | . . . . . . . . . . . . . . . . . . . . . . . Parts Stripped . | . . . . . . . . . . . . . . . . . . . . . . . Power Chain Reactions . | . . . . . . . . . . . . . . . . . . . . . . . Alert | -11 -10 -10 -10 -9 -8 -8 -8 -8 -7 -7 -7 -7 -6 -6 -5 -4 -4 -4 -4 -3 -3 -2 ------- Run | Yrd Mat Min Exi Min Mat Gar Mat Gar Fac Gar Fac Gar Fac Gar Fac Fac Upp Upp War Pro Res Res Peak Influence 1311 | . 327 100 . 5 353 914 408 764 370 1276 523 1311 655 390 196 150 . . . . 140 149 Initial 511 | . . . . . 1 26 326 14 297 31 497 169 511 191 114 75 . . . . 70 59 Average 296 | . 106 30 . 2 103 478 156 473 116 591 124 830 538 300 143 98 . . . . 95 88 Maximum Alert Level 4 | . 1 . . . 1 3 2 3 1 4 2 4 2 1 . . . . . . . . Low Security (%) 54 | 100 78 100 . 100 87 23 66 21 78 12 76 5 . 7 100 100 . . . . 100 100 Level 1 18 | . 21 . . . 12 4 25 18 21 34 13 12 26 92 . . . . . . . . Level 2 11 | . . . . . . 46 7 26 . 9 9 7 73 . . . . . . . . . Level 3 11 | . . . . . . 24 . 33 . 35 . 47 . . . . . . . . . . Level 4 3 | . . . . . . . . . . 6 . 27 . . . . . . . . . . Level 5 . | . . . . . . . . . . . . . . . . . . . . . . . High Security . | . . . . . . . . . . . . . . . . . . . . . . . Max Security . | . . . . . . . . . . . . . . . . . . . . . . . Squads Dispatched 32 | . 2 . . 1 3 . . . 4 . 16 . . . 2 2 . . . 1 . 1 Investigation 10 | . 2 . . 1 . . . . 1 . 1 . . . 2 2 . . . . . 1 Extermination 10 | . . . . . . . . . 3 . 7 . . . . . . . . . . . Reinforcement 10 | . . . . . 3 . . . . . 7 . . . . . . . . . . . Assault 2 | . . . . . . . . . . . 1 . . . . . . . . 1 . . Garrison . | . . . . . . . . . . . . . . . . . . . . . . . Intercept . | . . . . . . . . . . . . . . . . . . . . . . . Searches Triggered . | . . . . . . . . . . . . . . . . . . . . . . . Construction Impeded 1 | . . . . . 1 . . . . . . . . . . . . . . . . . Haulers Reinforced 1 | . . . . . . . . . . . 1 . . . . . . . . . . . Active Scanning Responses . | . . . . . . . . . . . . . . . . . . . . . . . Cargo Convoy Interrupts 1 | . . . . . . . . . . . 1 . . . . . . . . . . . Stealth | -11 -10 -10 -10 -9 -8 -8 -8 -8 -7 -7 -7 -7 -6 -6 -5 -4 -4 -4 -4 -3 -3 -2 --------- Run | Yrd Mat Min Exi Min Mat Gar Mat Gar Fac Gar Fac Gar Fac Gar Fac Fac Upp Upp War Pro Res Res Distress Signals 7 | . 1 . . . 1 . . . . 1 1 2 . . 1 . . . . . . . Communications Jammed . | . . . . . . . . . . . . . . . . . . . . . . . Distress Signals . | . . . . . . . . . . . . . . . . . . . . . . . Times Spotted 337 | . 15 4 . . 36 19 14 11 17 40 60 29 4 15 17 2 9 11 . 17 5 12 Peak Tracking Total 15 | . 2 2 . . 4 4 3 6 3 7 6 9 3 12 14 2 7 5 . 15 4 9 Tactical Retreats 28 | . 1 . . . 3 . . 1 . 2 4 2 . 1 2 . 4 3 . 2 1 2 Traps | -11 -10 -10 -10 -9 -8 -8 -8 -8 -7 -7 -7 -7 -6 -6 -5 -4 -4 -4 -4 -3 -3 -2 ------- Run | Yrd Mat Min Exi Min Mat Gar Mat Gar Fac Gar Fac Gar Fac Gar Fac Fac Upp Upp War Pro Res Res Traps Triggered 31 | . 3 . . . 2 3 1 . 1 2 3 2 1 7 2 . . . 2 . . 2 Indirectly . | . . . . . . . . . . . . . . . . . . . . . . . Trap Hack Attempts 9 | . . . . . . . . . . 9 . . . . . . . . . . . . Triggered . | . . . . . . . . . . . . . . . . . . . . . . . Disarmed 1 | . . . . . . . . . . 1 . . . . . . . . . . . . Reprogrammed 1 | . . . . . . . . . . 1 . . . . . . . . . . . . Reused 7 | . . . . . . . . . 4 1 2 . . . . . . . . . . . Traps Reconfigurated 67 | . . . . . . . 6 9 22 17 12 1 . . . . . . . . . . Traps Extracted . | . . . . . . . . . . . . . . . . . . . . . . . Installed . | . . . . . . . . . . . . . . . . . . . . . . . Triggered 10 | . . . . . . . . . 5 1 2 . . . . . 2 . . . . . Machines | -11 -10 -10 -10 -9 -8 -8 -8 -8 -7 -7 -7 -7 -6 -6 -5 -4 -4 -4 -4 -3 -3 -2 ---------- Run | Yrd Mat Min Exi Min Mat Gar Mat Gar Fac Gar Fac Gar Fac Gar Fac Fac Upp Upp War Pro Res Res Machines Disabled 27 | . . . . . 1 5 1 8 . 6 2 3 . 1 . . . . . . . . Max in Single Turn 1 | . . . . . 1 1 1 1 . 1 1 1 . 1 . . . . . . . . Garrison Access 1 | . . . . . . . . . . . 1 . . . . . . . . . . . Garrison Relay 18 | . . . . . . 4 . 5 . 5 . 3 . 1 . . . . . . . . Machines Repaired . | . . . . . . . . . . . . . . . . . . . . . . . Machines Dismantled . | . . . . . . . . . . . . . . . . . . . . . . . Machines Sabotaged . | . . . . . . . . . . . . . . . . . . . . . . . Overloaded Fab Kills . | . . . . . . . . . . . . . . . . . . . . . . . Hacking | -11 -10 -10 -10 -9 -8 -8 -8 -8 -7 -7 -7 -7 -6 -6 -5 -4 -4 -4 -4 -3 -3 -2 --------- Run | Yrd Mat Min Exi Min Mat Gar Mat Gar Fac Gar Fac Gar Fac Gar Fac Fac Upp Upp War Pro Res Res Machines Accessed 78 | . 10 . 1 1 10 4 8 3 10 3 12 3 2 1 1 2 1 1 . . 3 2 Terminals 57 | . 8 . . . 7 4 6 3 6 3 7 3 1 1 1 1 . 1 . . 3 2 Fabricators 5 | . . . . . . . . . 2 . 3 . . . . . . . . . . . Repair Stations . | . . . . . . . . . . . . . . . . . . . . . . . Recycling Units 3 | . 2 . . . . . . . . . 1 . . . . . . . . . . . Scanalyzers 4 | . . . . . 2 . 1 . 1 . . . . . . . . . . . . . Garrison Access 6 | . . . . . 1 . 1 . 1 . 1 . 1 . . 1 . . . . . . Total Hacks 193 | . 31 . 1 1 20 5 30 6 27 5 29 8 7 2 3 4 1 1 . . 7 5 Successful 106 | . 20 . 1 1 12 3 15 3 19 3 12 3 4 1 1 . 1 1 . . 4 2 Failed 87 | . 11 . . . 8 2 15 3 8 2 17 5 3 1 2 4 . . . . 3 3 Catastrophic 10 | . 1 . . . . . 2 . . . 3 . . . 1 1 . . . . . 2 Database Lockouts . | . . . . . . . . . . . . . . . . . . . . . . . Manual 101 | . 22 . 1 . 10 . 22 1 15 . 13 3 5 1 3 2 . . . . 1 2 Terminals 160 | . 29 . . . 15 5 27 6 19 5 21 8 5 2 3 2 . 1 . . 7 5 Fabricators 10 | . . . . . . . . . 5 . 5 . . . . . . . . . . . Repair Stations . | . . . . . . . . . . . . . . . . . . . . . . . Recycling Units 4 | . 2 . . . . . . . . . 2 . . . . . . . . . . . Scanalyzers 7 | . . . . . 4 . 1 . 2 . . . . . . . . . . . . . Garrison Access 9 | . . . . . 1 . 2 . 1 . 1 . 2 . . 2 . . . . . . Terminal Hacks 59 | . 15 . 1 1 3 3 7 3 7 3 3 3 . 1 1 . 1 1 . . 4 2 Record 3 | . . . . . . . . . . . . . . . . . . 1 . . 1 1 Part Schematic 3 | . 2 . . . . . . . 1 . . . . . . . . . . . . . Robot Analysis 2 | . 2 . . . . . . . . . . . . . . . . . . . . . Prototype ID Bank 6 | . 5 . . . . . . . 1 . . . . . . . . . . . . . Open Door 4 | . . . . 1 . . . . . 1 . 1 . . . . 1 . . . . . Level Access Points 3 | . . . . . . . . . . . . . . . 1 . . . . . 1 1 Branch Access Points 3 | . 1 . . . 1 . . . 1 . . . . . . . . . . . . . Emergency Access Points 5 | . . . . . . 1 . 1 . 1 . . . 1 . . . . . . 1 . Machine Index 1 | . . . . . 1 . . . . . . . . . . . . . . . . . Terminal Index 3 | . 1 . . . . . 1 . 1 . . . . . . . . . . . . . Garrison Index 3 | . . . . . . . 1 . 1 . 1 . . . . . . . . . . . Locate Traps 9 | . 2 . . . 1 . 3 . 1 . . 1 . . . . . . . . 1 . Recall Extermination 2 | . . . . . . . . . 1 . 1 . . . . . . . . . . . Hauler Manifests 2 | . 1 . . . . . . . . . 1 . . . . . . . . . . . Zone Layout 3 | . 1 . . . . . 2 . . . . . . . . . . . . . . . Garrison Registry 5 | . . . . . . 1 . 2 . 1 . 1 . . . . . . . . . . Patrol Navigation 1 | . . . . . . 1 . . . . . . . . . . . . . . . . Derelict Proto ID Bank 1 | . . . 1 . . . . . . . . . . . . . . . . . . . Fabricator Hacks 7 | . . . . . . . . . 3 . 4 . . . . . . . . . . . Load Schematic 4 | . . . . . . . . . 2 . 2 . . . . . . . . . . . Build 3 | . . . . . . . . . 1 . 2 . . . . . . . . . . . Repair Station Hacks . | . . . . . . . . . . . . . . . . . . . . . . . Recycling Unit Hacks . | . . . . . . . . . . . . . . . . . . . . . . . Scanalyzer 7 | . . . . . 4 . 1 . 2 . . . . . . . . . . . . . Insert Component 4 | . . . . . 2 . 1 . 1 . . . . . . . . . . . . . Analyze 3 | . . . . . 2 . . . 1 . . . . . . . . . . . . . Garrison Access Hacks 7 | . . . . . 1 . 2 . 1 . 1 . 2 . . . . . . . . . Unlock Access 5 | . . . . . 1 . 1 . 1 . 1 . 1 . . . . . . . . . Coupler Status 2 | . . . . . . . 1 . . . . . 1 . . . . . . . . . Unauthorized Hacks 26 | . 5 . . . 4 . 5 . 6 . 4 . 2 . . . . . . . . . Terminals 23 | . 3 . . . 4 . 5 . 6 . 3 . 2 . . . . . . . . . Assimilate 2 | . . . . . 1 . . . 1 . . . . . . . . . . . . . Botnet 18 | . 3 . . . 3 . 4 . 4 . 3 . 1 . . . . . . . . . Operators 3 | . . . . . . . 1 . 1 . . . 1 . . . . . . . . . Fabricators . | . . . . . . . . . . . . . . . . . . . . . . . Repair Stations . | . . . . . . . . . . . . . . . . . . . . . . . Recycling Units 3 | . 2 . . . . . . . . . 1 . . . . . . . . . . . Reject 1 | . . . . . . . . . . . 1 . . . . . . . . . . . Tunnel 2 | . 2 . . . . . . . . . . . . . . . . . . . . . Scanalyzers . | . . . . . . . . . . . . . . . . . . . . . . . Garrison Access . | . . . . . . . . . . . . . . . . . . . . . . . Data Cores Recovered 1 | . . . . . . . 1 . . . . . . . . . . . . . . . Used . | . . . . . . . . . . . . . . . . . . . . . . . Hacking Detections 59 | . 8 . . . 7 3 7 3 7 2 10 2 1 1 1 2 . . . . 3 2 Full Trace Events 9 | . . . . . . 1 2 . 1 . 1 . . . 1 2 . . . . . 1 Feedback Events . | . . . . . . . . . . . . . . . . . . . . . . . Feedback Blocked . | . . . . . . . . . . . . . . . . . . . . . . . Robot Schematics Acquired . | . . . . . . . . . . . . . . . . . . . . . . . Robots Built 3 | . . . . . . . . . . . 3 . . . . . . . . . . . Authchips 1 | . . . . . . . . . . . 1 . . . . . . . . . . . Time 67 | . . . . . . . . . . . 67 . . . . . . . . . . . Total Robot Build Rating 12 | . . . . . . . . . . . 12 . . . . . . . . . . . Part Schematics Acquired 6 | . 2 . . . 2 . . . 2 . . . . . . . . . . . . . Parts Built 3 | . . . . . . . . . 1 . 2 . . . . . . . . . . . Authchips . | . . . . . . . . . . . . . . . . . . . . . . . Time 109 | . . . . . . . . . 25 . 84 . . . . . . . . . . . Total Part Build Rating 9 | . . . . . . . . . 1 . 8 . . . . . . . . . . . Parts Repaired . | . . . . . . . . . . . . . . . . . . . . . . . Time . | . . . . . . . . . . . . . . . . . . . . . . . Parts Recycled . | . . . . . . . . . . . . . . . . . . . . . . . Recycled Matter . | . . . . . . . . . . . . . . . . . . . . . . . Retrieved Matter . | . . . . . . . . . . . . . . . . . . . . . . . Retrieved Components . | . . . . . . . . . . . . . . . . . . . . . . . Parts Scanalyzed 3 | . . . . . 2 . . . 1 . . . . . . . . . . . . . Part Schematics Acquired 3 | . . . . . 2 . . . 1 . . . . . . . . . . . . . Parts Damaged . | . . . . . . . . . . . . . . . . . . . . . . . Bothacking | -11 -10 -10 -10 -9 -8 -8 -8 -8 -7 -7 -7 -7 -6 -6 -5 -4 -4 -4 -4 -3 -3 -2 ------------ Run | Yrd Mat Min Exi Min Mat Gar Mat Gar Fac Gar Fac Gar Fac Gar Fac Fac Upp Upp War Pro Res Res Used RIF Installer 5 | . . . . . . 1 . 1 . 1 . 1 . 1 . . . . . . . . Hotswap 1 | . . . . . . . . . . . . 1 . . . . . . . . . . Watcher Feeds 1 | . . . . . . . . . . . . . . 1 . . . . . . . . Patrol Navigation 1 | . . . . . . . . . . 1 . . . . . . . . . . . . Program Shield 1 | . . . . . . . . 1 . . . . . . . . . . . . . . Robots Hacked 27 | . . . . . . . 6 . 7 3 11 . . . . . . . . . . . Non-combat 16 | . . . . . . . 6 . 7 . 3 . . . . . . . . . . . Combat 11 | . . . . . . . . . . 3 8 . . . . . . . . . . . Robot Hacks Applied 32 | . . . . . . . 7 . 10 4 11 . . . . . . . . . . . parse_system 1 | . . . . . . . 1 . . . . . . . . . . . . . . . find_chute 2 | . . . . . . . . . 2 . . . . . . . . . . . . . hold_bot 1 | . . . . . . . . . 1 . . . . . . . . . . . . . map_walls 1 | . . . . . . . 1 . . . . . . . . . . . . . . . drop_inventory 6 | . . . . . . . 4 . 1 . 1 . . . . . . . . . . . locate_stockpiles 1 | . . . . . . . 1 . . . . . . . . . . . . . . . map_route 2 | . . . . . . . . . 2 . . . . . . . . . . . . . mark_security 1 | . . . . . . . . . 1 . . . . . . . . . . . . . relay_feed 2 | . . . . . . . . . 2 . . . . . . . . . . . . . spike_heat 1 | . . . . . . . . . . . 1 . . . . . . . . . . . overload_power 1 | . . . . . . . . . 1 . . . . . . . . . . . . . amplify_resonance 2 | . . . . . . . . . . 2 . . . . . . . . . . . . wipe_record 1 | . . . . . . . . . . . 1 . . . . . . . . . . . overwrite_iff 1 | . . . . . . . . . . . 1 . . . . . . . . . . . streamctrl_high 1 | . . . . . . . . . . 1 . . . . . . . . . . . . formatsys_low 2 | . . . . . . . . . . . 2 . . . . . . . . . . . formatsys_high 6 | . . . . . . . . . . 1 5 . . . . . . . . . . . Relay Couplers Released 66 | . . . . . . 16 . 19 . 17 . 11 . 3 . . . . . . . . Machine Destruction 66 | . . . . . . 16 . 19 . 17 . 11 . 3 . . . . . . . . Attached 16 | . . . . . . . 1 1 1 5 4 3 1 . . . . . . . . . Fabnet Peak Effective % . | . . . . . . . . . . . . . . . . . . . . . . . Robots Rewired 22 | . . . . . . . . 1 . 19 . 2 . . . . . . . . . . Allies Hacked 1 | . . . . . . . . . . . 1 . . . . . . . . . . . Hacks Repelled . | . . . . . . . . . . . . . . . . . . . . . . . Allies | -11 -10 -10 -10 -9 -8 -8 -8 -8 -7 -7 -7 -7 -6 -6 -5 -4 -4 -4 -4 -3 -3 -2 -------- Run | Yrd Mat Min Exi Min Mat Gar Mat Gar Fac Gar Fac Gar Fac Gar Fac Fac Upp Upp War Pro Res Res Total Allies 39 | . . . . 1 . . . 1 1 23 11 2 . . . . . . . . . . Largest Group 17 | . . . . 1 1 . . 1 1 17 8 2 . . . . . . . . . . Highest-Rated Group 472 | . . . . 31 31 . . 20 26 472 334 70 . . . . . . . . . . Highest-Rated Ally 95 | . . . . 31 31 . . 20 26 95 95 39 . . . . . . . . . . Total Orders 2 | . . . . . . . . . . 1 1 . . . . . . . . . . . STAY 1 | . . . . . . . . . . 1 . . . . . . . . . . . . AID 1 | . . . . . . . . . . . 1 . . . . . . . . . . . Ally Attacks 233 | . . . . . 9 . . 1 2 109 70 42 . . . . . . . . . . Total Damage 6475 | . . . . . 167 . . . 73 3202 2500 533 . . . . . . . . . . Kills 56 | . . . . . 1 . . . 1 29 21 4 . . . . . . . . . . Allies Corrupted . | . . . . . . . . . . . . . . . . . . . . . . . Allies Melted . | . . . . . . . . . . . . . . . . . . . . . . . Intel | -11 -10 -10 -10 -9 -8 -8 -8 -8 -7 -7 -7 -7 -6 -6 -5 -4 -4 -4 -4 -3 -3 -2 ------- Run | Yrd Mat Min Exi Min Mat Gar Mat Gar Fac Gar Fac Gar Fac Gar Fac Fac Upp Upp War Pro Res Res Robot Analysis Total 2 | . 2 . . . . . . . . . . . . . . . . . . . . . Derelict Logs Recovered 3 | . . 2 . . . . . . . . . . . . . . . 1 . . . . Drone Launches . | . . . . . . . . . . . . . . . . . . . . . . . Drone Recoveries . | . . . . . . . . . . . . . . . . . . . . . . . Exploration | -11 -10 -10 -10 -9 -8 -8 -8 -8 -7 -7 -7 -7 -6 -6 -5 -4 -4 -4 -4 -3 -3 -2 ------------- Run | Yrd Mat Min Exi Min Mat Gar Mat Gar Fac Gar Fac Gar Fac Gar Fac Fac Upp Upp War Pro Res Res Turns Passed 21065 | 2 977 634 734 629 1665 1721 1454 918 1892 1901 4354 2017 543 692 135 81 132 122 42 141 106 173 Spaces Moved 11723 | 1 673 403 385 324 830 954 853 520 1105 927 1763 753 217 259 261 154 259 242 84 271 172 313 Core 1813 | . . . . . . . . . . . . . . 57 261 154 259 242 84 271 172 313 Treads 27 | . . . . . . 12 . . . . 13 1 . 1 . . . . . . . . Legs 1818 | 1 673 403 385 324 32 . . . . . . . . . . . . . . . . . Wheels 8065 | . . . . . 798 942 853 520 1105 927 1750 752 217 201 . . . . . . . . Hover . | . . . . . . . . . . . . . . . . . . . . . . . Flight . | . . . . . . . . . . . . . . . . . . . . . . . Fastest Speed 50 | 120 120 120 190 190 120 135 145 145 145 145 160 220 220 50 50 50 50 50 50 50 50 50 Average Speed 153 | 120 120 145 190 190 149 151 152 145 154 158 217 224 224 184 50 50 50 50 50 50 50 50 Slowest Speed 650 | 120 120 190 190 190 245 320 155 145 160 160 650 557 235 400 50 50 50 50 50 50 50 50 Overloaded Moves . | . . . . . . . . . . . . . . . . . . . . . . . Propulsion Burnouts . | . . . . . . . . . . . . . . . . . . . . . . . Robots Hopped . | . . . . . . . . . . . . . . . . . . . . . . . Cave-ins Triggered . | . . . . . . . . . . . . . . . . . . . . . . . Exploration Rate (%) 50 | 2 86 72 88 67 70 86 76 80 37 94 56 83 8 41 14 6 53 55 17 58 7 12 Regions Visited 22 Branch Regions 7 Pre-discovered Areas 3 | . 2 1 . . . . . . . . . . . . . . . . . . . . Known Exits Taken 17 | 1 1 1 1 1 1 . 1 . 1 . 1 . 1 . 1 1 1 1 1 1 1 . Unknown Exits Taken . | . . . . . . . . . . . . . . . . . . . . . . . Scrap Searched 4 | . . 1 . 1 . . . . . . . . . . . . 1 . . 1 . . Spaces Dug 32 | . . . . . . 2 13 2 2 . 13 . . . . . . . . . . . Terrain Destroyed 130 | . . . . . 25 4 19 2 6 . 30 26 2 16 . . . . . . . . Melee 8 | . . . . . . 2 3 . . . 3 . . . . . . . . . . . Projectile 68 | . . . . . . . 16 2 6 . 27 14 2 1 . . . . . . . . AOE 54 | . . . . . 25 2 . . . . . 12 . 15 . . . . . . . . Terrain Rammed . | . . . . . . . . . . . . . . . . . . . . . . . Walls Destroyed . | . . . . . . . . . . . . . . . . . . . . . . . Machines Disabled . | . . . . . . . . . . . . . . . . . . . . . . . Actions | -11 -10 -10 -10 -9 -8 -8 -8 -8 -7 -7 -7 -7 -6 -6 -5 -4 -4 -4 -4 -3 -3 -2 --------- Run | Yrd Mat Min Exi Min Mat Gar Mat Gar Fac Gar Fac Gar Fac Gar Fac Fac Upp Upp War Pro Res Res Total 13703 | 1 767 431 389 334 1055 1099 957 615 1244 1246 2132 980 258 393 264 157 260 242 83 276 191 329 Wait 598 | . 27 12 . . 64 15 20 13 39 142 208 37 12 . . . . . . . 9 . Move 11706 | . 672 402 384 323 830 953 853 519 1105 926 1763 752 217 258 260 153 258 241 83 270 171 313 Hop . | . . . . . . . . . . . . . . . . . . . . . . . Pick Up 124 | . 9 . 2 3 11 11 7 8 12 15 11 27 2 5 1 . . . . . . . Fast Attach 59 | . 2 1 . . 13 5 5 5 4 4 4 6 1 3 1 1 1 . . 1 2 . Attach 72 | . 1 . . . 6 3 5 . 3 7 12 25 7 3 . . . . . . . . Detach 78 | . 1 1 . . 9 2 6 2 4 8 11 22 5 4 . 1 . . . . 2 . Swap 148 | 1 4 6 . 1 9 17 17 9 29 21 24 5 3 2 . . . . . . . . Drop 128 | . 10 . 3 4 13 5 10 11 14 16 9 18 1 10 . . . . . 3 1 . Fire 542 | . 41 9 . 3 99 45 21 45 22 75 86 64 10 22 . . . . . . . . Melee 123 | . . . . . . 25 13 3 12 18 3 14 . 35 . . . . . . . . Ram 34 | . . . . . 1 . . . . . . . . 3 2 2 1 1 . 2 6 16 Kick . | . . . . . . . . . . . . . . . . . . . . . . . Crush . | . . . . . . . . . . . . . . . . . . . . . . . Escape Stasis 80 | . . . . . . 18 . . . 4 . 10 . 48 . . . . . . . . Rewire 2 | . . . . . . . . . . 1 1 . . . . . . . . . . . Trap 9 | . . . . . . . . . . 9 . . . . . . . . . . . . Miscellaneous . | . . . . . . . . . . . . . . . . . . . . . . . Route ------- -11/Scrapyard -10/Materials (discovered 4 exits: *Mat x3 / *Min) -10/Mines -10/Exiles -9/Mines -8/Materials (discovered 6 exits: *Fac x3 / *Sto x2 / Gar) -8/Garrison (discovered 3 exits: *Mat x3) -8/Materials (discovered 5 exits: *Fac x3 / *Sto / Gar) -8/Garrison (discovered 3 exits: *Fac x3) -7/Factory (discovered 3 exits: *Low x2 / Gar) -7/Garrison (discovered 3 exits: *Fac x3) -7/Factory (discovered 3 exits: *Low x2 / Gar) -7/Garrison (discovered 3 exits: *Fac x3) -6/Factory -6/Garrison -5/Factory (discovered 4 exits: *Fac x4) -4/Factory -4/Upper Caves -4/Upper Caves -4/Warlord -3/Proximity Caves -3/Research (discovered 4 exits: *Res x3 / Qua) -2/Research (discovered 3 exits: Acc x3) History --------- Turn | Location | Event 3 | -11/Scrapyard | Identified exit to Materials 3 | -11/Scrapyard | Discovered exit to Materials (range 0) 3 | -11/Scrapyard | Entered Materials 3 | -10/Materials | Evolved 1 slot: Utility x1 79 | -10/Materials | Identified exit to Mines 197 | -10/Materials | Identified exit to Materials 197 | -10/Materials | Discovered exit to Materials (range 8) 305 | -10/Materials | Build established: Hacker-Mutant 494 | -10/Materials | Discovered exit to Materials (range 18) 681 | -10/Materials | Discovered exit to Materials (range 8) 980 | -10/Materials | Entered Mines 988 | -10/Mines | Met a Derelict bent on vengeance 1207 | -10/Mines | Deemed a non-threat by the Exiles lab entrance 1208 | -10/Mines | Identified exit to Exiles 1208 | -10/Mines | Discovered exit to Exiles (range 5) 1460 | -10/Mines | Learned Materials terminal intel 1522 | -10/Mines | Assembled infested the area 1528 | -10/Mines | Learned location of 1 exit from Materials 1614 | -10/Mines | Entered Exiles 1660 | -10/Exiles | Met 8R-AWN 1692 | -10/Exiles | Met EX-HEX 1744 | -10/Exiles | Met EX-BIN 1770 | -10/Exiles | Aligned with FarCom system 1772 | -10/Exiles | Given EX-Vault access code 1848 | -10/Exiles | Opened EX-Vault 1860 | -10/Exiles | Found Trap Reconfigurator 1897 | -10/Exiles | Warned to stay clear of 0b10 Research branches 1952 | -10/Exiles | Met EX-DEC 2056 | -10/Exiles | Visited The Gauntlet 2327 | -10/Exiles | Identified exit to Mines 2327 | -10/Exiles | Discovered exit to Mines (range 14) 2348 | -10/Exiles | Left Exiles lab with Trap Reconfigurator 2348 | -10/Exiles | Entered Mines 2404 | -9/Mines | A weapon hastily lodged in a ceiling crevice suddenly fell to the ground 2543 | -9/Mines | Met a Derelict shopkeep closing up shop 2939 | -9/Mines | Received a Rocket Launcher from a helpful Derelict 2940 | -9/Mines | Identified exit to Materials 2940 | -9/Mines | Discovered exit to Materials (range 16) 2965 | -9/Mines | Received a Mining Laser from a helpful Derelict 2977 | -9/Mines | Entered Materials 2977 | -8/Materials | Accompanied by 1 ally 2977 | -8/Materials | Evolved 4 slots: Propulsion x2, Utility x2 2978 | -8/Materials | Identified exit to Storage 2979 | -8/Materials | Loaded intel: 12 terminal locations 3412 | -8/Materials | Discovered exit to Storage (range 13) 3782 | -8/Materials | Identified exit to Factory 3782 | -8/Materials | Discovered exit to Factory (range 15) 4180 | -8/Materials | Discovered exit to Factory (range 10) 4424 | -8/Materials | Discovered exit to Factory (range 16) 4642 | -8/Materials | Identified exit to Garrison 4642 | -8/Materials | Entered Garrison 4706 | -8/Garrison | Triggered checkpoint 4782 | -8/Garrison | Triggered checkpoint 4821 | -8/Garrison | Garrison Relay disabled 4984 | -8/Garrison | Identified exit to Materials 4984 | -8/Garrison | Discovered exit to Materials (range 19) 5038 | -8/Garrison | Triggered checkpoint 5070 | -8/Garrison | Garrison Relay disabled 5124 | -8/Garrison | Triggered checkpoint 5199 | -8/Garrison | Garrison Relay disabled 5277 | -8/Garrison | Discovered exit to Materials (range 17) 5686 | -8/Garrison | Spotted B-75 Beast 5817 | -8/Garrison | Discovered exit to Materials (range 66) 5817 | -8/Garrison | Discovered exit to Materials (range 85) 5817 | -8/Garrison | Discovered exit to Materials (range 30) 5932 | -8/Garrison | Triggered checkpoint 6153 | -8/Garrison | Installed Relay Interface Framework 6247 | -8/Garrison | Lost 3 parts (1n2u) 6283 | -8/Garrison | Garrison Relay disabled 6363 | -8/Garrison | Entered Materials 6477 | -8/Materials | Discovered exit to Storage (range 13) 6736 | -8/Materials | Discovered exit to Factory (range 5) 6839 | -8/Materials | Discovered exit to Factory (range 15) 6888 | -8/Materials | Build established: Bothacker-Skirmisher 7436 | -8/Materials | Build established: Bothacker-Mutant 7616 | -8/Materials | Discovered exit to Factory (range 10) 7817 | -8/Materials | Identified exit to Garrison 7817 | -8/Materials | Entered Garrison 7849 | -8/Garrison | Discovered exit to Factory (range 67) 7849 | -8/Garrison | Discovered exit to Factory (range 61) 7849 | -8/Garrison | Discovered exit to Factory (range 50) 7880 | -8/Garrison | Garrison Relay disabled 8046 | -8/Garrison | Triggered checkpoint 8067 | -8/Garrison | Expanded RIF knowledge: Program Shield 8086 | -8/Garrison | Garrison Relay disabled 8179 | -8/Garrison | Triggered checkpoint 8182 | -8/Garrison | Triggered checkpoint 8283 | -8/Garrison | Garrison Relay disabled 8401 | -8/Garrison | Discovered exit to Factory (range 12) 8401 | -8/Garrison | Discovered exit to Factory (range 55) 8401 | -8/Garrison | Discovered exit to Factory (range 56) 8417 | -8/Garrison | Triggered checkpoint 8429 | -8/Garrison | Garrison Relay disabled 8693 | -8/Garrison | Garrison Relay disabled 8735 | -8/Garrison | Entered Factory 8735 | -7/Factory | Accompanied by 1 ally 8735 | -7/Factory | Evolved 2 slots: Utility x2 8952 | -7/Factory | Identified exit to Lower Caves 8952 | -7/Factory | Discovered exit to Lower Caves (range 15) 9063 | -7/Factory | Fabricated Cargo Storage Unit (x1) 10627 | -7/Factory | Identified exit to Garrison 10627 | -7/Factory | Entered Garrison 10627 | -7/Garrison | Accompanied by 1 ally 10707 | -7/Garrison | Triggered checkpoint 10794 | -7/Garrison | Garrison Relay disabled 10883 | -7/Garrison | Triggered checkpoint 11017 | -7/Garrison | Identified exit to Factory 11017 | -7/Garrison | Discovered exit to Factory (range 14) 11103 | -7/Garrison | Triggered checkpoint 11113 | -7/Garrison | Triggered checkpoint 11242 | -7/Garrison | Found embedded Infiltrators 11319 | -7/Garrison | Discovered exit to Factory (range 42) 11319 | -7/Garrison | Discovered exit to Factory (range 70) 11319 | -7/Garrison | Discovered exit to Factory (range 6) 11529 | -7/Garrison | Garrison Relay disabled 11567 | -7/Garrison | Garrison Relay disabled 11697 | -7/Garrison | Triggered checkpoint 11711 | -7/Garrison | Triggered checkpoint 11748 | -7/Garrison | Lost 7 allies 11831 | -7/Garrison | Spotted B-75 Beast 11843 | -7/Garrison | Allies destroyed B-75 Beast 11880 | -7/Garrison | Found Quantum Capacitor 12082 | -7/Garrison | Expanded RIF knowledge: Patrol Navigation 12233 | -7/Garrison | Triggered checkpoint 12250 | -7/Garrison | Garrison Relay disabled 12389 | -7/Garrison | Triggered checkpoint 12426 | -7/Garrison | Garrison Relay disabled 12442 | -7/Garrison | Lost 3 allies 12528 | -7/Garrison | Entered Factory 12528 | -7/Factory | Accompanied by 7 allies 12625 | -7/Factory | Fabricated Arm. Huge Wheel (x2) 13230 | -7/Factory | Cargo convoy interrupted 13280 | -7/Factory | Lost 6 allies 13681 | -7/Factory | Discovered exit to Lower Caves (range 5) 13858 | -7/Factory | Fabricated B-48 Gladiator (x3) 14036 | -7/Factory | Discovered exit to Lower Caves (range 5) 14085 | -7/Factory | Lost 5 allies 16882 | -7/Factory | Identified exit to Garrison 16882 | -7/Factory | Entered Garrison 16990 | -7/Garrison | Triggered checkpoint 17118 | -7/Garrison | Garrison Relay disabled 17246 | -7/Garrison | Triggered checkpoint 17249 | -7/Garrison | Triggered checkpoint 17266 | -7/Garrison | Triggered checkpoint 17402 | -7/Garrison | Core integrity fell below 50% 17430 | -7/Garrison | Identified exit to Factory 17430 | -7/Garrison | Discovered exit to Factory (range 12) 17430 | -7/Garrison | Discovered exit to Factory (range 58) 17430 | -7/Garrison | Discovered exit to Factory (range 69) 17620 | -7/Garrison | Triggered checkpoint 17767 | -7/Garrison | Garrison Relay disabled 17888 | -7/Garrison | Triggered checkpoint 17967 | -7/Garrison | Garrison Relay disabled 18145 | -7/Garrison | Found Imp. Powered Armor 18156 | -7/Garrison | Found Imp. Powered Armor 18159 | -7/Garrison | Found Imp. Powered Armor 18379 | -7/Garrison | Expanded RIF knowledge: Hotswap 18647 | -7/Garrison | Build established: Botlord-Mutant 18899 | -7/Garrison | Entered Factory 18899 | -6/Factory | Evolved 2 slots: Power x1, Utility x1 19442 | -6/Factory | Identified exit to Garrison 19442 | -6/Factory | Entered Garrison 19719 | -6/Garrison | Expanded RIF knowledge: Watcher Feeds 19800 | -6/Garrison | Triggered checkpoint 19833 | -6/Garrison | Garrison Relay disabled 19982 | -6/Garrison | Spotted B-75 Beast 20071 | -6/Garrison | Released all parts (10) 20078 | -6/Garrison | Triggered checkpoint 20080 | -6/Garrison | Triggered checkpoint 20080 | -6/Garrison | Lost 11 parts (4n5u2w) 20122 | -6/Garrison | Core integrity fell below 50% 20127 | -6/Garrison | Identified exit to Factory 20127 | -6/Garrison | Discovered exit to Factory (range 15) 20134 | -6/Garrison | Entered Factory 20134 | -5/Factory | Evolved 2 slots: Utility x2 20223 | -5/Factory | Spotted B-75 Beast 20254 | -5/Factory | Identified exit to Factory 20269 | -5/Factory | Entered another Factory area 20269 | -4/Factory | Evolved 2 slots: Utility x2 20329 | -4/Factory | Build established: Hacker-Mutant 20332 | -4/Factory | Identified exit to Upper Caves 20332 | -4/Factory | Discovered exit to Upper Caves (range 12) 20350 | -4/Factory | Entered Upper Caves 20367 | -4/Upper Caves | Encountered a Warlord checkpoint 20475 | -4/Upper Caves | Identified exit to Upper Caves 20475 | -4/Upper Caves | Discovered exit to Upper Caves (range 13) 20482 | -4/Upper Caves | Entered another Upper Caves area 20495 | -4/Upper Caves | Attracted the attention of an 0b10 checkpoint 20514 | -4/Upper Caves | Learned location of 1 exit from Research 20600 | -4/Upper Caves | Identified exit to Warlord 20600 | -4/Upper Caves | Discovered exit to Warlord (range 10) 20604 | -4/Upper Caves | Entered Warlord 20628 | -4/Warlord | RIF detected upon attempting to enter Warlord's base 20628 | -4/Warlord | Attacked by Warlord forces 20641 | -4/Warlord | Identified exit to Proximity Caves 20641 | -4/Warlord | Discovered exit to Proximity Caves (range 12) 20646 | -4/Warlord | Entered Proximity Caves 20686 | -3/Proximity Caves | Attracted the attention of an 0b10 outpost 20719 | -3/Proximity Caves | Core integrity fell below 50% 20783 | -3/Proximity Caves | Identified exit to Research 20783 | -3/Proximity Caves | Discovered exit to Research (range 8) 20787 | -3/Proximity Caves | Entered Research 20787 | -3/Research | Evolved 2 slots: Utility x2 20788 | -3/Research | Identified exit to Quarantine 20799 | -3/Research | Identified exit to Research 20837 | -3/Research | Found Launcher Loader 20893 | -3/Research | Entered another Research area 20893 | -2/Research | Evolved 2 slots: Utility x2 20995 | -2/Research | Core integrity fell below 50% 21017 | -2/Research | Identified exit to Access 21041 | -2/Research | Core integrity fell below 20% 21066 | -2/Research | Destroyed by H-88 Terminator with KE Penetrator Last Messages --------------- (187,93) (18,179) (194,29) Map updated. 21017_ ALERT: Suspicious activity at Terminal R016. Dispatching Investigation squad. 21026_ Slug penetrates Wall. 21036_ Slammed into P-80 Master. 21040_ Destabilizing: System corrupted (+1). 21041_ Slammed into P-80 Master. 21042_ System corrupted: Heat flow error (+168). 21042_ Slammed into P-80 Master. 21052_ Slug penetrates Wall. 21054_ Terminal disabled. 21054_ Slug penetrates Wall. 21055_ Penetrated by Slug. 21061_ Slug penetrates Wall. 21064_ Penetrated by Slug. 21064_ Slug penetrates Wall. 21066_ Penetrated by Slug. Map ----- +----------------------------------------------------+ | ??????????????????????????????# ### """ | | ??????????????????????????????# #?# """ | | ??????????????????????????????###########?# """ | | ??????????????????????????????????????????# """ | | ??????????????????????????????????????????# | | ?????????????????????????????????????????## | | ?????????????????????????????????????????# | | ?????????????????????????????????????????# | | ?????????????????????????????????????????# | | ???????????########?????????Y????????????# | | ???????????# #??????????????????????# | | ???????????# [ #??????????????????????# | | ???????????#! #??###??????????####+### " " | | ???????????# #? #??????????# ""T" | | ???????????#! ! ] #? #??????????# """ | | ???????????? ?? #??????????# | | ?????????????#+#### #??????????# | | ?????????????# + #??????????# | | ?????????????# # ]#??????????# ########## | | ?????????????# # #???####+### #????????? | | ?????????????# #? #???# #????????? | | ????????######### #? #???# #????????? | | ????????# ## ##?###???# h #????????? | | ????????# #h ######### #????????? | | ????????# * gg h u h #????????? | | ????????# #p p######@#####+#########????????? | | ????????# ## ##??? # #????????????? | | ????????# ## #?? # #????????????? | | ???????####+##### ### # #????????????? | | ???????# #???#Y ## # #????????????? | | ???????# [ #???# ## # #????????????? | | ???????# #??## ### # #????????????? | | ???????# #### ######### " " #????????????? | | ???????# / #???????# "T" #????????????? | | ???????# # #???????# """ #????????????? | | ???????# [ # ##???????##########????????????? | | ???????# + #??????????????????????????????? | | ???????# ##### #??????????????????????????????? | | ???????######???# #??????????????????????????????? | | ????????????????# #??????????????????????????????? | | ???????######???# #??????????????????????????????? | | ???????# #???# #??????????????????????????????? | | ???????# #???# #??######??????????????????????? | | ???????# #??## ## ] #??????????????????????? | | ???????# #### # #??????????????????????? | | ???????# + ! + #??????????????????????? | | ???????# #### # #??????????????????????? | | ???????# #??##### #??????????????????????? | | ???????# #???????? #??????????????????????? | | ???????# #????????######??????????????????????? | +----------------------------------------------------+ Best States ------------- Heat Dissipation 97 Energy Generation 32 Energy Capacity 515 Matter Stores 300 Matter Capacity 300 Sight Range 22 Terrain Scan Density 10 Armor Coverage 600 Resistance: KI 65 Resistance: TH 35 Resistance: EX 35 Resistance: EM 35 Resistance: I 35 Resistance: S 35 Resistance: P 35 Evasion (%) 55 Targeting Accuracy 5 Recoil Reduction 3 Offensive Hacking 30 Relay Coupler Types 4 Relay Coupler Value 157 Authchip Count 2 Item Schematics ----------------- Cargo Storage Unit | -10/Materials | Hacked Huge Storage Unit | -10/Materials | Hacked Humpback | -8/Materials | Scanalyzed Rocket Launcher | -8/Materials | Scanalyzed Arm. Huge Wheel | -7/Factory | Scanalyzed Remote Datajack | -7/Factory | Hacked Robot Schematics ------------------ None Fabricated ------------ Cargo Storage Unit | x1 | -7/Factory Arm. Huge Wheel | x2 | -7/Factory B-48 Gladiator | x3 | -7/Factory | Preloaded, Authchip Alien Tech Used ----------------- None Achievements -------------- Desperate Times Hehehe Challenges ------------ None Game ------ Seed CobblerEnhancedShotgun Manual? 0 Play Time 03:13:49 Cumulative 250.9 hours Start 2024.11.19 @ 21:32:42 End 2024.11.20 @ 12:30:12 Sessions 7 Manual Loads 0 Difficulty Explorer Special Mode None Game No. 124 Rogue 115 Adventurer 0 Explorer 9 Win Type - Total 20 Types 7/2/6/3/1/0/1/0/0 Lore% 49 Gallery% 74 Achievement% 74 Wizard Run 0 Options --------- Layout 2 ASCII 0 Keyboard 1 Movement Numpad Keybinds 0 Fullscreen 0 Font 14/Dina Map View 64x51 Zoom Use 0% Tactical HUD 1 Map Filters NONE Filters NONE Steam X RUN: f61b2e01-40de-4d57-a11f-d51a2561c49c